[Event "16th EWICC 2015"]
[Site "Kutaisi"]
[Date "2015.06.01"]
[Round "2"]
[White "Mikadze, Miranda"]
[Black "Arakhamia-Grant, Ketevan"]
[Result "0-1"]
[ECO "B00"]
[WhiteElo "2233"]
[BlackElo "2393"]
[Annotator "Robot 11"]
[PlyCount "86"]
[EventDate "2015.??.??"]
[EventCountry "GEO"]
[TimeControl "900+10"]

1. e4 {[%emt 0:00:01]} d6 {[%emt 0:00:03]} 2. d4 {[%emt 0:00:01]} Nf6 {[%emt 0:
00:03]} 3. Nd2 {[%emt 0:00:03]} e5 {[%emt 0:00:30]} 4. c3 {[%emt 0:00:05]} Nbd7
{[%emt 0:01:14]} 5. Ngf3 {[%emt 0:00:02]} Be7 {[%emt 0:00:10]} 6. Qc2 {[%emt 0:
00:03]} c6 {[%emt 0:00:33]} 7. Be2 {[%emt 0:00:13]} O-O {[%emt 0:00:09]} 8. O-O
{[%emt 0:00:02]} Re8 {[%emt 0:00:17]} 9. dxe5 {[%emt 0:00:20]} dxe5 {[%emt 0:
00:04]} 10. Re1 {[%emt 0:00:29]} Qc7 {[%emt 0:00:04]} 11. Nc4 {[%emt 0:00:06]}
Bf8 {[%emt 0:00:17]} 12. a4 {[%emt 0:00:33]} Nc5 {[%emt 0:00:21]} 13. Bf1 {
[%emt 0:00:07]} Bg4 {[%emt 0:00:21]} 14. Nh4 {[%emt 0:00:10]} g6 {[%emt 0:00:
50]} 15. h3 {[%emt 0:00:02]} Be6 {[%emt 0:00:09]} 16. b4 {[%emt 0:00:03]} Ncd7
{[%emt 0:00:41]} 17. Nf3 {[%emt 0:00:04]} h6 {[%emt 0:00:39]} 18. Bb2 {[%emt 0:
00:21]} b5 {[%emt 0:01:16]} 19. Ne3 {[%emt 0:04:31]} a6 {[%emt 0:00:13]} 20.
Ba3 {[%emt 0:00:08]} Rab8 {[%emt 0:00:36]} 21. Rab1 {[%emt 0:01:25]} a5 {[%emt
0:01:40]} 22. Nd2 {[%emt 0:00:02]} Rec8 {[%emt 0:00:38]} 23. Ra1 {[%emt 0:00:
56]} axb4 {[%emt 0:02:06]} 24. cxb4 {[%emt 0:00:02]} bxa4 {[%emt 0:00:03]} 25.
Qxa4 {[%emt 0:00:02]} Ra8 {[%emt 0:00:10]} 26. Qc2 {[%emt 0:00:01]} Ra7 {[%emt
0:00:03]} 27. Bc4 {[%emt 0:00:21]} Bxc4 {[%emt 0:00:29]} 28. Qxc4 {[%emt 0:01:
22]} Qb7 {[%emt 0:00:57]} 29. Nb3 {[%emt 0:00:17]} Ra4 {[%emt 0:00:26]} 30. Nc2
{[%emt 0:00:57]} c5 {[%emt 0:00:44]} 31. Na5 {[%emt 0:00:18]} cxb4 {[%emt 0:00:
17]} 32. Qb3 {[%emt 0:00:51]} Rxa5 {[%emt 0:00:06]} 33. Bb2 {[%emt 0:00:45]}
Rxa1 {[%emt 0:00:08]} 34. Bxa1 {[%emt 0:00:02]} Nxe4 {[%emt 0:00:44]} 35. Ne3 {
[%emt 0:00:05]} Nec5 {[%emt 0:00:17]} 36. Qd1 {[%emt 0:00:16]} b3 {[%emt 0:00:
12]} 37. Nc4 {[%emt 0:00:01]} Rd8 {[%emt 0:00:37]} 38. Bxe5 {[%emt 0:00:24]}
Qb4 {[%emt 0:00:11]} 39. Qe2 {[%emt 0:00:21]} Re8 {[%emt 0:00:22]} 40. f4 {
[%emt 0:00:08]} Nxe5 {[%emt 0:00:18]} 41. fxe5 {[%emt 0:00:07]} Qc3 {[%emt 0:
00:27]} 42. Kh1 {[%emt 0:00:32]} Nd3 {[%emt 0:00:25]} 43. Rf1 {[%emt 0:00:36]}
Qxc4 {[%emt 0:00:08]} 0-1

[Event "16th EWICC 2015"]
[Site "Kutaisi"]
[Date "2015.06.01"]
[Round "2"]
[White "Stefanova, Antoaneta"]
[Black "Khurtsidze, Nino"]
[Result "1-0"]
[ECO "A06"]
[WhiteElo "2512"]
[BlackElo "2451"]
[Annotator "Robot 11"]
[PlyCount "75"]
[EventDate "2015.??.??"]
[EventCountry "GEO"]
[TimeControl "900+10"]

1. Nf3 {[%emt 0:00:02]} d5 {[%emt 0:00:02]} 2. g3 {[%emt 0:00:02]} Nf6 {[%emt
0:00:02]} 3. Bg2 {[%emt 0:00:01]} e6 {[%emt 0:00:04]} 4. O-O {[%emt 0:00:07]}
b5 {[%emt 0:00:01]} 5. d3 {[%emt 0:00:42]} Bb7 {[%emt 0:00:03]} 6. Ne5 {[%emt
0:00:59]} Nbd7 {[%emt 0:00:08]} 7. f4 {[%emt 0:00:05]} c5 {[%emt 0:00:27]} 8.
e3 {[%emt 0:01:37]} Bd6 {[%emt 0:01:04]} 9. d4 {[%emt 0:00:01]} O-O {[%emt 0:
00:04]} 10. Nd2 {[%emt 0:00:21]} Ne4 {[%emt 0:02:02]} 11. Nxd7 {[%emt 0:01:39]}
Nxd2 {[%emt 0:00:13]} 12. Nxf8 {[%emt 0:00:15]} Nxf1 {[%emt 0:00:05]} 13. Nxe6
{[%emt 0:00:44]} fxe6 {[%emt 0:00:18]} 14. Bxf1 {[%emt 0:00:12]} Qb6 {[%emt 0:
00:27]} 15. c3 {[%emt 0:00:23]} b4 {[%emt 0:00:26]} 16. Bd3 {[%emt 0:01:43]}
Ba6 {[%emt 0:00:34]} 17. Bc2 {[%emt 0:00:04]} cxd4 {[%emt 0:00:27]} 18. exd4 {
[%emt 0:00:24]} Rf8 {[%emt 0:02:53]} 19. Be3 {[%emt 0:04:19]} bxc3 {[%emt 0:01:
31]} 20. bxc3 {[%emt 0:00:02]} Qc7 {[%emt 0:03:44]} 21. Bd2 e5 {[%emt 0:01:12]}
22. fxe5 {[%emt 0:01:54]} Bxe5 {[%emt 0:00:01]} 23. Qg4 {[%emt 0:01:39]} Qf7 {
[%emt 0:01:49]} 24. Be3 {[%emt 0:00:02]} Bc7 {[%emt 0:00:11]} 25. Re1 {[%emt 0:
00:36]} Ba5 {[%emt 0:00:02]} 26. Bf4 {[%emt 0:00:55]} Bxc3 {[%emt 0:00:05]} 27.
Rd1 {[%emt 0:00:00]} Qf6 {[%emt 0:00:35]} 28. Qh5 {[%emt 0:00:00]} h6 {[%emt 0:
00:37]} 29. Qxd5+ {[%emt 0:00:00]} Qf7 {[%emt 0:00:16]} 30. Qc5 {[%emt 0:00:33]
} Bc4 {[%emt 0:00:04]} 31. d5 {[%emt 0:00:08]} Be2 {[%emt 0:00:15]} 32. Qxc3 {
[%emt 0:00:10]} Bxd1 {[%emt 0:00:01]} 33. Bxd1 {[%emt 0:00:01]} g5 {[%emt 0:00:
01]} 34. d6 {[%emt 0:00:10]} Qg7 {[%emt 0:00:27]} 35. Bb3+ {[%emt 0:00:11]} Kh7
{[%emt 0:00:02]} 36. Qxg7+ {[%emt 0:00:17]} Kxg7 {[%emt 0:00:01]} 37. Be5+ {
[%emt 0:00:07]} Kg6 {[%emt 0:00:01]} 38. d7 {[%emt 0:00:04]} 1-0

[Event "16th EWICC 2015"]
[Site "Kutaisi"]
[Date "2015.06.01"]
[Round "2"]
[White "Sviridova, Vlada"]
[Black "Gognadze, Tsira"]
[Result "1-0"]
[ECO "E18"]
[WhiteElo "2087"]
[BlackElo "1144"]
[Annotator "Robot 11"]
[PlyCount "45"]
[EventDate "2015.??.??"]
[EventCountry "GEO"]
[TimeControl "900+10"]

1. d4 {[%emt 0:00:02]} Nf6 {[%emt 0:00:02]} 2. c4 {[%emt 0:00:01]} e6 {[%emt 0:
00:01]} 3. Nf3 {[%emt 0:00:01]} b6 {[%emt 0:00:01]} 4. g3 {[%emt 0:00:01]} Bb7
{[%emt 0:00:01]} 5. Bg2 {[%emt 0:00:01]} Be7 {[%emt 0:00:01]} 6. Nc3 {[%emt 0:
00:03]} O-O {[%emt 0:00:05]} 7. O-O {[%emt 0:00:01]} d5 {[%emt 0:00:12]} 8.
cxd5 {[%emt 0:00:53]} Nxd5 {[%emt 0:00:04]} 9. Re1 {[%emt 0:00:11]} Nxc3 {
[%emt 0:00:12]} 10. bxc3 {[%emt 0:00:01]} c5 {[%emt 0:00:05]} 11. e4 {[%emt 0:
00:04]} Qd7 {[%emt 0:00:46]} 12. Ne5 {[%emt 0:00:29]} Qc7 {[%emt 0:01:40]} 13.
Bf4 {[%emt 0:01:53]} Nc6 {[%emt 0:02:26]} 14. Ng6 {[%emt 0:01:25]} Qd7 {[%emt
0:00:29]} 15. Nxf8 {[%emt 0:00:06]} Bxf8 {[%emt 0:00:08]} 16. dxc5 {[%emt 0:01:
09]} Qxd1 {[%emt 0:00:20]} 17. Raxd1 {[%emt 0:00:13]} Bxc5 {[%emt 0:00:21]} 18.
Rd7 {[%emt 0:00:03]} Ba6 {[%emt 0:00:43]} 19. e5 {[%emt 0:01:47]} Bb5 {[%emt 0:
00:02]} 20. Rc7 {[%emt 0:00:25]} Nxe5 {[%emt 0:02:13]} 21. Bxa8 {[%emt 0:00:09]
} Nd3 {[%emt 0:02:22]} 22. Rc8+ {[%emt 0:00:02]} Bf8 {[%emt 0:00:01]} 23. Bd6 {
[%emt 0:00:04]} 1-0

[Event "16th EWICC 2015"]
[Site "Kutaisi"]
[Date "2015.06.01"]
[Round "2"]
[White "Zaksaite, Salomeja"]
[Black "Khomeriki, Nino"]
[Result "0-1"]
[ECO "C70"]
[WhiteElo "2203"]
[BlackElo "2228"]
[Annotator "Robot 11"]
[PlyCount "86"]
[EventDate "2015.??.??"]
[EventCountry "GEO"]
[TimeControl "900+10"]

1. e4 {[%emt 0:00:02]} e5 {[%emt 0:00:07]} 2. Nf3 {[%emt 0:00:01]} Nc6 {[%emt
0:00:01]} 3. Bb5 {[%emt 0:00:03]} a6 {[%emt 0:00:05]} 4. Ba4 {[%emt 0:00:02]}
Nge7 {[%emt 0:00:02]} 5. c3 {[%emt 0:00:18]} g6 {[%emt 0:00:03]} 6. d4 {[%emt
0:00:46]} exd4 {[%emt 0:00:03]} 7. cxd4 {[%emt 0:00:11]} b5 {[%emt 0:00:05]} 8.
Bb3 {[%emt 0:00:07]} Bg7 {[%emt 0:00:05]} 9. d5 {[%emt 0:00:21]} Na5 {[%emt 0:
00:05]} 10. Bc2 {[%emt 0:00:15]} d6 {[%emt 0:00:05]} 11. O-O {[%emt 0:00:13]}
O-O {[%emt 0:00:07]} 12. Nd4 {[%emt 0:00:05]} Bb7 {[%emt 0:01:42]} 13. Nc3 {
[%emt 0:00:12]} b4 {[%emt 0:00:36]} 14. Nce2 {[%emt 0:00:08]} Rc8 {[%emt 0:02:
21]} 15. a3 {[%emt 0:00:04]} c5 {[%emt 0:01:10]} 16. axb4 {[%emt 0:01:39]} Nc4
{[%emt 0:03:45]} 17. bxc5 {[%emt 0:00:52]} dxc5 {[%emt 0:00:02]} 18. Nf3 {
[%emt 0:00:24]} f5 {[%emt 0:00:19]} 19. Bb3 {[%emt 0:00:58]} fxe4 {[%emt 0:02:
40]} 20. Bxc4 {[%emt 0:00:40]} exf3 {[%emt 0:00:20]} 21. d6+ {[%emt 0:00:03]}
Kh8 {[%emt 0:00:25]} 22. dxe7 {[%emt 0:00:08]} Qxe7 {[%emt 0:00:02]} 23. Ng3 {
[%emt 0:01:37]} fxg2 {[%emt 0:00:35]} 24. Re1 {[%emt 0:00:01]} Rcd8 {[%emt 0:
00:22]} 25. Qe2 {[%emt 0:00:52]} Qh4 {[%emt 0:01:03]} 26. Be3 {[%emt 0:01:16]}
Rd4 {[%emt 0:00:26]} 27. f4 {[%emt 0:03:33]} Rdxf4 {[%emt 0:00:10]} 28. Bxf4 {
[%emt 0:01:12]} Qxf4 {[%emt 0:00:27]} 29. Rad1 {[%emt 0:03:23]} Bd4+ {[%emt 0:
00:01]} 30. Rxd4 {[%emt 0:00:08]} Qxd4+ {[%emt 0:00:01]} 31. Qe3 {[%emt 0:00:
04]} Qxc4 {[%emt 0:00:01]} 32. Qe7 {[%emt 0:00:29]} Qd4+ {[%emt 0:00:18]} 33.
Re3 {[%emt 0:00:01]} Qf4 {[%emt 0:00:25]} 34. Qe5+ {[%emt 0:00:19]} Qxe5 {
[%emt 0:00:04]} 35. Rxe5 {[%emt 0:00:01]} Rd8 {[%emt 0:00:07]} 36. Ne2 {[%emt
0:00:07]} Rd1+ {[%emt 0:00:37]} 37. Kf2 {[%emt 0:00:01]} Rf1+ {[%emt 0:00:02]}
38. Ke3 {[%emt 0:00:07]} Rf3+ {[%emt 0:00:44]} 39. Kd2 {[%emt 0:00:04]} Rf2 {
[%emt 0:00:01]} 40. Rg5 {[%emt 0:00:26]} Bf3 {[%emt 0:00:36]} 41. Ke3 {[%emt 0:
00:23]} Rxe2+ {[%emt 0:00:10]} 42. Kxf3 {[%emt 0:00:01]} Rxb2 {[%emt 0:00:02]}
43. h4 {[%emt 0:00:09]} Kg7 {[%emt 0:00:16]} 0-1

[Event "16th EWICC 2015"]
[Site "Kutaisi"]
[Date "2015.06.01"]
[Round "2"]
[White "Donghvani, Nia"]
[Black "Petrenko, Svetlana"]
[Result "0-1"]
[ECO "B90"]
[WhiteElo "1444"]
[BlackElo "2207"]
[Annotator "Robot 11"]
[PlyCount "59"]
[EventDate "2015.??.??"]
[EventCountry "GEO"]
[TimeControl "900+10"]

1. e4 {[%emt 0:00:01]} c5 {[%emt 0:00:01]} 2. Nf3 {[%emt 0:00:02]} d6 {[%emt 0:
00:01]} 3. d4 {[%emt 0:00:01]} cxd4 {[%emt 0:00:02]} 4. Nxd4 {[%emt 0:00:02]}
Nf6 {[%emt 0:00:02]} 5. Nc3 {[%emt 0:00:01]} a6 {[%emt 0:00:01]} 6. Be3 {[%emt
0:00:22]} Ng4 {[%emt 0:00:05]} 7. Qd2 {[%emt 0:01:33]} Nxe3 {[%emt 0:00:03]} 8.
Qxe3 {[%emt 0:00:05]} e6 {[%emt 0:00:08]} 9. O-O-O {[%emt 0:00:05]} Qc7 {[%emt
0:00:09]} 10. f4 {[%emt 0:00:34]} Be7 {[%emt 0:00:07]} 11. Kb1 {[%emt 0:00:33]}
O-O {[%emt 0:00:07]} 12. g4 {[%emt 0:00:24]} b5 {[%emt 0:00:19]} 13. f5 {[%emt
0:00:36]} Nc6 {[%emt 0:01:00]} 14. h4 {[%emt 0:02:31]} Nxd4 {[%emt 0:00:04]}
15. Qxd4 {[%emt 0:00:10]} b4 {[%emt 0:01:01]} 16. Ne2 {[%emt 0:00:28]} a5 {
[%emt 0:01:40]} 17. h5 {[%emt 0:00:38]} h6 {[%emt 0:00:55]} 18. fxe6 {[%emt 0:
00:48]} fxe6 {[%emt 0:00:31]} 19. Bg2 {[%emt 0:00:21]} Ba6 {[%emt 0:00:48]} 20.
e5 {[%emt 0:05:15]} dxe5 {[%emt 0:00:44]} 21. Qd7 {[%emt 0:01:39]} Qxd7 {[%emt
0:00:49]} 22. Rxd7 {[%emt 0:00:06]} Rae8 {[%emt 0:00:10]} 23. Ng3 {[%emt 0:00:
36]} Bc5 {[%emt 0:00:37]} 24. Ne4 {[%emt 0:00:24]} Bd4 {[%emt 0:00:04]} 25. g5
{[%emt 0:00:51]} Rf4 {[%emt 0:03:56]} 26. gxh6 {[%emt 0:00:40]} gxh6 {[%emt 0:
00:04]} 27. Rd6 {[%emt 0:00:30]} Bc4 {[%emt 0:00:24]} 28. Rd7 {[%emt 0:00:12]}
Kh8 {[%emt 0:00:19]} 29. Re1 {[%emt 0:00:03]} Rg8 {[%emt 0:00:14]} 30. Bh3 0-1

[Event "16th EWICC 2015"]
[Site "Kutaisi"]
[Date "2015.06.01"]
[Round "2"]
[White "Dordzhieva, Dinara"]
[Black "Batsiashvili, Nino"]
[Result "1-0"]
[ECO "A04"]
[WhiteElo "2242"]
[BlackElo "2473"]
[Annotator "Robot 11"]
[PlyCount "107"]
[EventDate "2015.??.??"]
[EventCountry "GEO"]
[TimeControl "900+10"]

1. Nf3 {[%emt 0:00:06]} f5 {[%emt 0:00:05]} 2. d3 {[%emt 0:00:12]} d6 {[%emt 0:
00:04]} 3. Nc3 {[%emt 0:00:10]} e5 {[%emt 0:00:07]} 4. e4 {[%emt 0:00:02]} c5 {
[%emt 0:00:43]} 5. Bg5 {[%emt 0:01:50]} Be7 {[%emt 0:00:03]} 6. Bxe7 {[%emt 0:
00:19]} Nxe7 {[%emt 0:00:01]} 7. g3 {[%emt 0:02:12]} O-O {[%emt 0:00:05]} 8.
exf5 {[%emt 0:00:02]} Bxf5 {[%emt 0:00:17]} 9. Nh4 {[%emt 0:00:07]} Be6 {[%emt
0:00:09]} 10. Bg2 {[%emt 0:00:03]} Nbc6 {[%emt 0:00:01]} 11. Qd2 {[%emt 0:00:
41]} Nd4 {[%emt 0:03:12]} 12. O-O {[%emt 0:01:37]} Qd7 {[%emt 0:00:27]} 13. Ne4
{[%emt 0:01:00]} Nef5 {[%emt 0:00:35]} 14. Nxf5 {[%emt 0:00:57]} Bxf5 {[%emt 0:
00:11]} 15. c3 {[%emt 0:01:07]} Ne6 {[%emt 0:00:05]} 16. Qe3 {[%emt 0:02:01]}
h6 {[%emt 0:00:03]} 17. Rad1 {[%emt 0:00:03]} Rad8 {[%emt 0:00:04]} 18. h3 {
[%emt 0:01:13]} Kh8 {[%emt 0:00:24]} 19. Kh2 {[%emt 0:00:02]} Qf7 {[%emt 0:00:
25]} 20. c4 {[%emt 0:01:13]} Qh5 {[%emt 0:00:34]} 21. a3 {[%emt 0:00:35]} Bxh3
{[%emt 0:00:57]} 22. Bxh3 {[%emt 0:00:26]} Rf3 {[%emt 0:01:01]} 23. Qxf3 {
[%emt 0:00:23]} Qxf3 {[%emt 0:00:02]} 24. Bxe6 {[%emt 0:00:01]} Rf8 {[%emt 0:
00:16]} 25. Rd2 {[%emt 0:00:28]} b5 {[%emt 0:01:26]} 26. b3 {[%emt 0:00:51]} a6
{[%emt 0:01:38]} 27. Kg1 {[%emt 0:00:07]} Qh5 {[%emt 0:00:13]} 28. Ra1 {[%emt
0:00:29]} Qg6 {[%emt 0:00:59]} 29. Bd5 {[%emt 0:00:15]} bxc4 {[%emt 0:00:06]}
30. dxc4 {[%emt 0:00:35]} h5 {[%emt 0:00:34]} 31. Kg2 {[%emt 0:00:21]} Rf4 {
[%emt 0:00:16]} 32. Re2 {[%emt 0:00:20]} Qg4 {[%emt 0:00:06]} 33. Re3 {[%emt 0:
00:05]} h4 {[%emt 0:00:24]} 34. Rh1 {[%emt 0:00:01]} g5 {[%emt 0:00:01]} 35. f3
{[%emt 0:00:30]} Qf5 {[%emt 0:01:31]} 36. gxf4 {[%emt 0:00:01]} exf4 {[%emt 0:
00:03]} 37. Re2 {[%emt 0:00:16]} Qe5 {[%emt 0:00:12]} 38. Bb7 {[%emt 0:00:25]}
Kg7 {[%emt 0:00:11]} 39. Bc8 {[%emt 0:00:07]} d5 {[%emt 0:00:18]} 40. cxd5 {
[%emt 0:00:07]} Qxd5 {[%emt 0:00:01]} 41. Bg4 {[%emt 0:00:15]} Qxb3 {[%emt 0:
00:08]} 42. Nxg5 {[%emt 0:00:01]} c4 {[%emt 0:00:09]} 43. Rc1 {[%emt 0:00:10]}
Qb5 {[%emt 0:00:52]} 44. Ne6+ {[%emt 0:00:05]} Kf6 {[%emt 0:00:02]} 45. Nxf4 {
[%emt 0:00:04]} c3 {[%emt 0:01:08]} 46. Re6+ {[%emt 0:00:21]} Kf7 {[%emt 0:00:
10]} 47. Rxc3 {[%emt 0:00:09]} Qb2+ {[%emt 0:01:00]} 48. Ne2 {[%emt 0:00:01]}
Qb8 {[%emt 0:00:19]} 49. Rd3 {[%emt 0:00:01]} Qb5 {[%emt 0:00:47]} 50. Rd7+ {
[%emt 0:00:35]} Kf8 {[%emt 0:00:01]} 51. Re3 {[%emt 0:00:12]} a5 {[%emt 0:00:
52]} 52. Nf4 {[%emt 0:00:11]} Qb8 {[%emt 0:00:06]} 53. Ng6+ {[%emt 0:00:09]}
Kg8 {[%emt 0:00:01]} 54. Be6# {[%emt 0:00:02]} 1-0

[Event "16th EWICC 2015"]
[Site "Kutaisi"]
[Date "2015.06.01"]
[Round "2"]
[White "Gaponenko, Inna"]
[Black "Gaprindashvili, Nona"]
[Result "1-0"]
[ECO "B00"]
[WhiteElo "2391"]
[BlackElo "2302"]
[Annotator "Robot 11"]
[PlyCount "101"]
[EventDate "2015.??.??"]
[EventCountry "GEO"]
[TimeControl "900+10"]

1. e4 {[%emt 0:00:02]} b6 {[%emt 0:00:01]} 2. d4 {[%emt 0:00:02]} Bb7 {[%emt 0:
00:02]} 3. Bd3 {[%emt 0:00:01]} g6 {[%emt 0:00:04]} 4. Nf3 {[%emt 0:00:02]} Bg7
{[%emt 0:00:01]} 5. O-O {[%emt 0:00:02]} e6 {[%emt 0:00:02]} 6. c4 {[%emt 0:00:
01]} d6 {[%emt 0:00:02]} 7. Nc3 {[%emt 0:00:13]} c5 8. d5 {[%emt 0:00:11]} e5 {
[%emt 0:00:16]} 9. Ne1 Ne7 10. f4 {[%emt 0:01:09]} O-O {[%emt 0:03:02]} 11. f5
{[%emt 0:00:11]} f6 {[%emt 0:00:21]} 12. g4 {[%emt 0:01:48]} Na6 {[%emt 0:00:
21]} 13. Nf3 {[%emt 0:00:14]} Nc7 {[%emt 0:00:25]} 14. h4 {[%emt 0:00:57]} Bc8
15. h5 g5 {[%emt 0:01:54]} 16. Be3 {[%emt 0:00:12]} h6 {[%emt 0:00:03]} 17. a3
{[%emt 0:00:01]} Bd7 {[%emt 0:00:36]} 18. b4 {[%emt 0:00:22]} a5 {[%emt 0:00:
09]} 19. bxc5 {[%emt 0:03:48]} bxc5 {[%emt 0:00:04]} 20. Rb1 {[%emt 0:00:01]}
Rb8 {[%emt 0:00:15]} 21. Rf2 {[%emt 0:00:17]} Na8 {[%emt 0:02:52]} 22. Rfb2 {
[%emt 0:00:19]} Qc7 {[%emt 0:01:30]} 23. Qc2 {[%emt 0:02:38]} Qa7 {[%emt 0:01:
15]} 24. Bd2 {[%emt 0:02:18]} Nc7 {[%emt 0:02:34]} 25. Kf1 {[%emt 0:00:06]}
Rfc8 {[%emt 0:00:17]} 26. Ne1 {[%emt 0:00:15]} Bf8 {[%emt 0:00:12]} 27. Ng2 {
[%emt 0:00:27]} Kf7 {[%emt 0:00:31]} 28. Nd1 {[%emt 0:00:32]} a4 {[%emt 0:00:
53]} 29. Nc3 {[%emt 0:00:02]} Rxb2 {[%emt 0:00:42]} 30. Qxb2 {[%emt 0:00:18]}
Ra8 {[%emt 0:00:02]} 31. Qb6 {[%emt 0:01:53]} Nc8 {[%emt 0:00:07]} 32. Qxa7 {
[%emt 0:00:01]} Rxa7 {[%emt 0:00:01]} 33. Ne3 {[%emt 0:00:18]} Be7 {[%emt 0:00:
12]} 34. Bc2 {[%emt 0:00:14]} Bd8 {[%emt 0:00:17]} 35. Ned1 {[%emt 0:00:06]}
Ra6 {[%emt 0:00:14]} 36. Rb7 {[%emt 0:00:32]} Rb6 {[%emt 0:00:14]} 37. Rxb6 {
[%emt 0:00:01]} Nxb6 {[%emt 0:00:01]} 38. Nb2 {[%emt 0:00:01]} Na6 {[%emt 0:00:
10]} 39. Ncxa4 {[%emt 0:00:05]} Nxa4 {[%emt 0:00:13]} 40. Bxa4 {[%emt 0:00:01]}
Bxa4 {[%emt 0:00:02]} 41. Nxa4 {[%emt 0:00:01]} Ke7 {[%emt 0:00:01]} 42. Ke2 {
[%emt 0:00:11]} Kd7 {[%emt 0:00:02]} 43. Kd3 {[%emt 0:00:02]} Kc8 {[%emt 0:00:
01]} 44. Nc3 {[%emt 0:00:09]} Bc7 {[%emt 0:00:28]} 45. Nb5 {[%emt 0:00:12]} Bb8
{[%emt 0:00:34]} 46. Ba5 {[%emt 0:00:44]} Kd7 {[%emt 0:00:01]} 47. Kc2 {[%emt
0:00:06]} Kc8 {[%emt 0:00:08]} 48. Kb3 {[%emt 0:00:02]} Kd7 {[%emt 0:00:01]}
49. Ka4 {[%emt 0:00:02]} Kc8 {[%emt 0:00:08]} 50. Bb6 {[%emt 0:00:25]} Kb7 {
[%emt 0:01:02]} 51. Bd8 {[%emt 0:00:02]} 1-0

[Event "16th EWICC 2015"]
[Site "Kutaisi"]
[Date "2015.06.01"]
[Round "2"]
[White "Gevorgyan, Maria"]
[Black "Tedoshvili, Ana"]
[Result "1-0"]
[ECO "C13"]
[WhiteElo "2190"]
[BlackElo "1805"]
[Annotator "Robot 11"]
[PlyCount "89"]
[EventDate "2015.??.??"]
[EventCountry "GEO"]
[TimeControl "900+10"]

1. e4 {[%emt 0:00:17]} e6 {[%emt 0:00:02]} 2. d4 {[%emt 0:00:03]} d5 {[%emt 0:
00:02]} 3. Nc3 {[%emt 0:00:01]} Nf6 {[%emt 0:00:06]} 4. Bg5 {[%emt 0:00:02]}
Be7 {[%emt 0:00:05]} 5. e5 {[%emt 0:00:02]} Nfd7 {[%emt 0:00:02]} 6. h4 {[%emt
0:00:01]} c5 {[%emt 0:00:25]} 7. Bxe7 {[%emt 0:00:27]} Qxe7 {[%emt 0:00:02]} 8.
Nb5 {[%emt 0:00:01]} O-O {[%emt 0:01:10]} 9. Nc7 {[%emt 0:00:04]} Nb6 {[%emt 0:
00:04]} 10. Nxa8 {[%emt 0:00:03]} Nxa8 {[%emt 0:00:01]} 11. f4 {[%emt 0:00:58]}
cxd4 {[%emt 0:00:12]} 12. Qxd4 {[%emt 0:00:01]} Nc6 {[%emt 0:00:01]} 13. Qd2 {
[%emt 0:00:03]} Nb6 {[%emt 0:00:30]} 14. Nf3 {[%emt 0:00:05]} f6 {[%emt 0:00:
31]} 15. Bd3 {[%emt 0:01:00]} Qc7 {[%emt 0:02:29]} 16. O-O-O {[%emt 0:05:02]}
fxe5 {[%emt 0:01:20]} 17. fxe5 {[%emt 0:00:01]} Nxe5 {[%emt 0:00:09]} 18. Nxe5
{[%emt 0:00:01]} Qxe5 {[%emt 0:00:03]} 19. Rhf1 {[%emt 0:00:01]} Rf6 {[%emt 0:
01:15]} 20. Rde1 {[%emt 0:00:10]} Qh5 {[%emt 0:01:24]} 21. Rxf6 {[%emt 0:00:36]
} gxf6 {[%emt 0:00:02]} 22. Qf4 {[%emt 0:00:02]} Qf7 {[%emt 0:00:41]} 23. Qb8 {
[%emt 0:00:43]} e5 {[%emt 0:00:45]} 24. Bf5 {[%emt 0:00:33]} Qf8 {[%emt 0:00:
41]} 25. Bxc8 {[%emt 0:00:04]} Qxc8 {[%emt 0:00:08]} 26. Qd6 {[%emt 0:00:53]}
Qf8 {[%emt 0:01:13]} 27. Qc7 {[%emt 0:00:19]} Qc8 {[%emt 0:01:12]} 28. Qe7 {
[%emt 0:00:02]} Qf8 {[%emt 0:02:02]} 29. Qxb7 {[%emt 0:00:35]} Qh6+ {[%emt 0:
00:01]} 30. Kb1 {[%emt 0:00:01]} Qxh4 {[%emt 0:00:31]} 31. Qb8+ {[%emt 0:00:20]
} Kg7 {[%emt 0:00:09]} 32. Qxa7+ {[%emt 0:00:01]} Kg6 {[%emt 0:00:04]} 33. g3 {
[%emt 0:00:16]} Qb4 {[%emt 0:00:37]} 34. Rh1 {[%emt 0:00:34]} h6 {[%emt 0:00:
49]} 35. Qb8 {[%emt 0:00:02]} Qb5 {[%emt 0:00:59]} 36. a4 {[%emt 0:01:29]} Qa6
{[%emt 0:00:34]} 37. Qg8+ {[%emt 0:00:09]} Kf5 {[%emt 0:00:01]} 38. Rh5+ {
[%emt 0:00:19]} Ke4 {[%emt 0:00:09]} 39. Qg6+ {[%emt 0:00:45]} Kd4 {[%emt 0:00:
11]} 40. Rh4+ {[%emt 0:00:07]} Kc5 {[%emt 0:00:15]} 41. b4+ {[%emt 0:00:17]}
Kd6 {[%emt 0:00:11]} 42. Qxf6+ {[%emt 0:00:02]} Kc7 {[%emt 0:00:14]} 43. Qxe5+
Kb7 44. Qe7+ {[%emt 0:00:38]} Ka8 {[%emt 0:00:16]} 45. Rf4 {[%emt 0:00:16]} 1-0

[Event "16th EWICC 2015"]
[Site "Kutaisi"]
[Date "2015.06.01"]
[Round "2"]
[White "Giorgadze, Elene"]
[Black "Choladze, Mariam"]
[Result "0-1"]
[ECO "B43"]
[WhiteElo "1185"]
[BlackElo "1989"]
[Annotator "Robot 11"]
[PlyCount "40"]
[EventDate "2015.??.??"]
[EventCountry "GEO"]
[TimeControl "900+10"]

1. e4 {[%emt 0:00:02]} c5 {[%emt 0:00:00]} 2. Nf3 {[%emt 0:00:03]} e6 {[%emt 0:
00:03]} 3. d4 {[%emt 0:00:02]} cxd4 {[%emt 0:00:02]} 4. Nxd4 {[%emt 0:00:01]}
a6 {[%emt 0:00:02]} 5. Nc3 {[%emt 0:00:05]} Qc7 {[%emt 0:00:01]} 6. a3 {[%emt
0:00:23]} Nf6 {[%emt 0:00:06]} 7. Be3 {[%emt 0:00:14]} d6 {[%emt 0:00:04]} 8.
Qd2 {[%emt 0:00:23]} b5 {[%emt 0:00:14]} 9. f3 {[%emt 0:01:10]} Bb7 {[%emt 0:
00:02]} 10. O-O-O {[%emt 0:00:43]} Nbd7 {[%emt 0:00:07]} 11. g4 {[%emt 0:01:31]
} Ne5 {[%emt 0:00:16]} 12. g5 {[%emt 0:01:11]} Nfd7 {[%emt 0:00:05]} 13. f4 {
[%emt 0:00:40]} Nc4 {[%emt 0:00:30]} 14. Bxc4 {[%emt 0:00:41]} bxc4 {[%emt 0:
00:14]} 15. Rde1 {[%emt 0:01:42]} Be7 {[%emt 0:00:36]} 16. Bf2 {[%emt 0:02:51]}
Rb8 {[%emt 0:00:33]} 17. Nf3 {[%emt 0:01:41]} O-O {[%emt 0:03:19]} 18. h4 {
[%emt 0:00:54]} Bc6 {[%emt 0:00:33]} 19. Nd1 {[%emt 0:00:55]} d5 {[%emt 0:01:
19]} 20. Bd4 {[%emt 0:01:16]} dxe4 {[%emt 0:00:35]} 0-1